[Event "Commonwealth Open 2019"]
[Site "Delhi"]
[Date "2019.07.01"]
[Round "3.3"]
[White "Vaishali, R."]
[Black "Erigaisi, Arjun"]
[Result "1/2-1/2"]
[ECO "B51"]
[WhiteElo "2338"]
[BlackElo "2526"]
[Annotator "ChessBase"]
[PlyCount "134"]
[EventDate "2019.06.30"]
[EventType "swiss"]
[EventCountry "IND"]
[SourceTitle "playchess.com"]
[Source "ChessBase"]
[SourceQuality "1"]
[TimeControl "5400+30"]

1. e4 {[%emt 0:00:00]} c5 {[%emt 0:00:00]} 2. Nf3 {[%emt 0:00:01]} d6 {[%emt 0:00:04]} 3. Bb5+ {[%emt 0:00:08]} Nd7 {[%emt 0:00:09]} 4. O-O {[%emt 0:00:10]} a6 {[%emt 0:00:06]} 5. Bd3 {[%emt 0:00:12]} Ngf6 {[%emt 0:03:29]} 6. Re1 {[%emt 0:00:06]} e5 {[%emt 0:01:12]} 7. a4 {[%emt 0:01:39]} b6 {[%emt 0:01:45]} 8. Bc4 {[%emt 0:01:19]} Be7 {[%emt 0:03:49]} 9. c3 {[%emt 0:05:59]} Bb7 {[%emt 0:08:18]} 10. d3 {[%emt 0:06:26]} O-O {[%emt 0:03:58]} 11. Nbd2 {[%emt 0:00:33]} Bc6 {[%emt 0:23:58]} 12. Bb3 {[%emt 0:31:16]} b5 {[%emt 0:02:08]} 13. d4 {[%emt 0:01:33]} exd4 {[%emt 0:12:19]} 14. cxd4 {[%emt 0:00:06]} c4 {[%emt 0:00:06]} 15. Bc2 {[%emt 0:00:08]} Qc7 {[%emt 0:04:19]} 16. d5 {[%emt 0:15:21]} Bb7 {[%emt 0:00:51]} 17. Nd4 {[%emt 0:00:34]} b4 {[%emt 0:05:55]} 18. Nf5 {[%emt 0:05:14]} Rfe8 {[%emt 0:00:31]} 19. b3 {[%emt 0:01:40]} c3 {[%emt 0:08:29]} 20. Nc4 {[%emt 0:00:15]} Bf8 {[%emt 0:00:08]} 21. a5 {[%emt 0:07:52]} Rab8 {[%emt 0:05:31]} 22. Bg5 {[%emt 0:04:35]} h6 {[%emt 0:04:00]} 23. Bxf6 {[%emt 0:03:21]} Nxf6 {[%emt 0:00:07]} 24. Qd4 {[%emt 0:00:04]} Qd8 {[%emt 0:02:51]} 25. Nfe3 {[%emt 0:09:36]} Nd7 {[%emt 0:03:09]} 26. Nb6 {[%emt 0:01:13]} Nxb6 {[%emt 0:01:57]} 27. axb6 {[%emt 0:00:03]} Bc8 {[%emt 0:00:08]} 28. Qxb4 {[%emt 0:00:53]} Rxb6 {[%emt 0:00:06]} 29. Qxc3 {[%emt 0:00:11]} g6 {[%emt 0:00:05]} 30. Nc4 {[%emt 0:02:46]} Rb5 {[%emt 0:00:49]} 31. Qg3 {[%emt 0:00:28]} Rc5 {[%emt 0:01:28]} 32. h3 {[%emt 0:01:14]} a5 {[%emt 0:00:26]} 33. Bd3 {[%emt 0:00:21]} Ba6 {[%emt 0:00:52]} 34. Re2 {[%emt 0:01:00]} Bg7 {[%emt 0:01:46]} 35. Rd1 {[%emt 0:00:37]} a4 {[%emt 0:01:18]} 36. Qxd6 {[%emt 0:00:32]} Qxd6 {[%emt 0:00:29]} 37. Nxd6 {[%emt 0:00:03]} Bxd3 {[%emt 0:00:06]} 38. Red2 {[%emt 0:00:52]} Ra8 {[%emt 0:00:51]} 39. bxa4 {[%emt 0:00:35]} Ba6 {[%emt 0:00:10]} 40. f4 {[%emt 0:00:27]} Bf8 {[%emt 0:00:44]} 41. Nb5 {[%emt 0:00:21]} Rc4 {[%emt 0:00:07]} 42. d6 {[%emt 0:00:33]} Rd8 {[%emt 0:01:09]} 43. Nc7 {[%emt 0:00:36]} Bc8 {[%emt 0:00:39]} 44. e5 {[%emt 0:00:27]} Rxa4 {[%emt 0:00:34]} 45. Nd5 {[%emt 0:00:32]} Be6 {[%emt 0:00:23]} 46. Ne7+ {[%emt 0:00:33]} Kg7 {[%emt 0:00:06]} 47. Nc6 {[%emt 0:00:18]} Rc8 {[%emt 0:00:21]} 48. Nd4 {[%emt 0:00:36]} Bd7 {[%emt 0:00:06]} 49. Rb2 {[%emt 0:00:32]} Rcc4 {[%emt 0:01:21]} 50. Rb7 {[%emt 0:00:34]} Bc8 {[%emt 0:00:15]} 51. Rb8 {[%emt 0:00:30]} Rxd4 {[%emt 0:01:25]} 52. Rxd4 {[%emt 0:00:05]} Rxd4 {[%emt 0:00:04]} 53. Rxc8 {[%emt 0:00:01]} g5 {[%emt 0:00:34]} 54. f5 {[%emt 0:00:40]} Bxd6 {[%emt 0:00:49]} 55. exd6 {[%emt 0:00:12]} Rxd6 {[%emt 0:00:05]} 56. Rc5 {[%emt 0:00:22]} h5 {[%emt 0:00:22]} 57. Kf2 {[%emt 0:00:31]} Rd4 {[%emt 0:00:20]} 58. g3 {[%emt 0:01:16]} Kf6 {[%emt 0:00:14]} 59. Ke3 {[%emt 0:00:40]} Ra4 {[%emt 0:00:07]} 60. Kf3 {[%emt 0:00:10]} Ra3+ {[%emt 0:00:20]} 61. Kg2 {[%emt 0:00:39]} Ra2+ {[%emt 0:00:20]} 62. Kf3 {[%emt 0:00:54]} Rh2 {[%emt 0:01:08]} 63. Rc7 {[%emt 0:00:28]} Rxh3 {[%emt 0:00:34]} 64. Kg2 {[%emt 0:00:12]} g4 {[%emt 0:00:06]} 65. Ra7 {[%emt 0:00:42]} h4 {[%emt 0:00:20]} 66. gxh4 {[%emt 0:00:09]} Rf3 {[%emt 0:00:04]} 67. Rb7 {[%emt 0:00:28]} Ke5 1/2-1/2

[Event "Commonwealth Open 2019"]
[Site "Delhi"]
[Date "2019.07.01"]
[Round "3.4"]
[White "Swapnil, S. Dhopade"]
[Black "Rathnakaran, K.."]
[Result "1/2-1/2"]
[ECO "A04"]
[WhiteElo "2488"]
[BlackElo "2338"]
[Annotator "ChessBase"]
[PlyCount "60"]
[EventDate "2019.06.30"]
[EventType "swiss"]
[EventCountry "IND"]
[SourceTitle "playchess.com"]
[Source "ChessBase"]
[SourceQuality "1"]
[TimeControl "5400+30"]

1. Nf3 {[%emt 0:00:00]} g6 {[%emt 0:00:00]} 2. d4 {[%emt 0:00:34]} Bg7 {[%emt 0:00:00]} 3. g3 {[%emt 0:00:09]} d6 {[%emt 0:00:00]} 4. Bg2 {[%emt 0:00:30]} Nd7 {[%emt 0:00:00]} 5. c4 {[%emt 0:06:19]} e5 {[%emt 0:00:07]} 6. Nc3 {[%emt 0:00:05]} Ne7 {[%emt 0:00:15]} 7. O-O {[%emt 0:00:09]} O-O {[%emt 0:00:06]} 8. e4 {[%emt 0:04:00]} h6 {[%emt 0:00:09]} 9. Be3 {[%emt 0:06:40]} f5 {[%emt 0:00:17]} 10. dxe5 {[%emt 0:04:07]} dxe5 {[%emt 0:00:17]} 11. Qd2 {[%emt 0:10:24]} g5 {[%emt 0:04:41]} 12. exf5 {[%emt 0:01:19]} Nxf5 {[%emt 0:00:07]} 13. h3 {[%emt 0:03:52]} c6 {[%emt 0:04:07]} 14. Rad1 {[%emt 0:03:41]} Qe7 {[%emt 0:02:18]} 15. Ne4 {[%emt 0:09:04]} Nxe3 {[%emt 0:03:29]} 16. Qxe3 {[%emt 0:01:57]} Nb6 {[%emt 0:02:30]} 17. Nd6 {[%emt 0:05:53]} Rd8 {[%emt 0:08:21]} 18. Nxc8 {[%emt 0:05:46]} Raxc8 {[%emt 0:05:59]} 19. b3 {[%emt 0:00:07]} Rxd1 {[%emt 0:01:04]} 20. Rxd1 {[%emt 0:00:07]} Re8 {[%emt 0:03:31]} 21. h4 {[%emt 0:10:53]} e4 {[%emt 0:02:31]} 22. Re1 {[%emt 0:01:39]} Nc8 {[%emt 0:03:01]} 23. Nd2 {[%emt 0:03:23]} gxh4 {[%emt 0:00:56]} 24. Nxe4 {[%emt 0:00:05]} Rf8 {[%emt 0:04:55]} 25. Re2 {[%emt 0:06:17]} hxg3 {[%emt 0:01:41]} 26. Nxg3 {[%emt 0:00:12]} Qxe3 {[%emt 0:00:32]} 27. Rxe3 {[%emt 0:00:08]} Bd4 {[%emt 0:00:16]} 28. Rf3 {[%emt 0:00:03]} Rxf3 {[%emt 0:00:05]} 29. Bxf3 {[%emt 0:00:02]} Nd6 {[%emt 0:00:06]} 30. Kg2 {[%emt 0:00:05]} Kf7 {[%emt 0:00:15]} 1/2-1/2

[Event "Commonwealth Open 2019"]
[Site "Delhi"]
[Date "2019.07.01"]
[Round "3.5"]
[White "Kunte, Abhijit"]
[Black "Saravana, Krishnan P."]
[Result "1/2-1/2"]
[ECO "A06"]
[WhiteElo "2478"]
[BlackElo "2290"]
[Annotator "ChessBase"]
[PlyCount "71"]
[EventDate "2019.06.30"]
[EventType "swiss"]
[EventCountry "IND"]
[SourceTitle "playchess.com"]
[Source "ChessBase"]
[SourceQuality "1"]
[TimeControl "5400+30"]

1. Nf3 {[%emt 0:00:00]} d5 {[%emt 0:00:02]} 2. c4 {[%emt 0:00:44]} c6 {[%emt 0:02:15]} 3. d4 {[%emt 0:02:16]} Nf6 {[%emt 0:00:13]} 4. Qb3 {[%emt 0:00:54]} dxc4 {[%emt 0:01:37]} 5. Qxc4 {[%emt 0:00:06]} Bf5 {[%emt 0:01:18]} 6. g3 {[%emt 0:00:12]} e6 {[%emt 0:00:21]} 7. Bg2 {[%emt 0:00:06]} h6 {[%emt 0:00:38]} 8. O-O {[%emt 0:03:06]} Be7 {[%emt 0:00:11]} 9. e3 {[%emt 0:02:46]} O-O {[%emt 0:00:36]} 10. Rd1 {[%emt 0:02:07]} Nbd7 {[%emt 0:03:52]} 11. Qe2 {[%emt 0:00:17]} Rc8 {[%emt 0:06:30]} 12. Ne1 {[%emt 0:09:30]} Be4 {[%emt 0:01:33]} 13. f3 {[%emt 0:00:21]} Bxb1 {[%emt 0:00:57]} 14. Rxb1 {[%emt 0:00:06]} c5 {[%emt 0:00:03]} 15. dxc5 {[%emt 0:04:38]} Bxc5 {[%emt 0:02:00]} 16. Nd3 {[%emt 0:00:08]} Bb6 {[%emt 0:01:51]} 17. Kh1 {[%emt 0:00:07]} Qc7 {[%emt 0:10:09]} 18. e4 {[%emt 0:15:03]} e5 {[%emt 0:12:12]} 19. Bd2 {[%emt 0:03:42]} Qc4 {[%emt 0:01:00]} 20. Bb4 {[%emt 0:04:27]} Rfe8 {[%emt 0:02:28]} 21. b3 {[%emt 0:00:27]} Qa6 {[%emt 0:02:59]} 22. Bf1 {[%emt 0:00:32]} Bd4 {[%emt 0:01:31]} 23. Rbc1 {[%emt 0:02:43]} Qb6 {[%emt 0:01:30]} 24. Rc2 {[%emt 0:03:46]} Nb8 {[%emt 0:06:10]} 25. Rdc1 {[%emt 0:00:21]} Rxc2 {[%emt 0:01:16]} 26. Qxc2 {[%emt 0:00:11]} Nc6 {[%emt 0:00:20]} 27. Bc5 {[%emt 0:00:13]} Bxc5 {[%emt 0:06:24]} 28. Qxc5 {[%emt 0:00:15]} Nd7 {[%emt 0:01:00]} 29. Qxb6 {[%emt 0:00:45]} axb6 {[%emt 0:00:11]} 30. Kg2 {[%emt 0:05:36]} Rd8 {[%emt 0:04:15]} 31. Kf2 {[%emt 0:02:08]} Kf8 {[%emt 0:02:07]} 32. Ke3 {[%emt 0:05:25]} Ke7 {[%emt 0:02:56]} 33. f4 {[%emt 0:02:24]} f6 {[%emt 0:01:02]} 34. Bh3 {[%emt 0:00:15]} g5 {[%emt 0:02:20]} 35. b4 {[%emt 0:05:27]} Ra8 {[%emt 0:06:33]} 36. Bxd7 {[%emt 0:09:08]} 1/2-1/2

[Event "Commonwealth Open 2019"]
[Site "Delhi"]
[Date "2019.07.01"]
[Round "3.6"]
[White "Sangma, Rahul"]
[Black "Thejkumar, M. S."]
[Result "0-1"]
[ECO "A06"]
[WhiteElo "2298"]
[BlackElo "2458"]
[Annotator "ChessBase"]
[PlyCount "46"]
[EventDate "2019.06.30"]
[EventType "swiss"]
[EventCountry "IND"]
[SourceTitle "playchess.com"]
[Source "ChessBase"]
[SourceQuality "1"]
[TimeControl "5400+30"]

1. Nf3 {[%emt 0:00:00]} d5 {[%emt 0:00:16]} 2. e3 {[%emt 0:00:00]} Nf6 {[%emt 0:00:51]} 3. c4 {[%emt 0:00:00]} e6 {[%emt 0:00:22]} 4. b3 {[%emt 0:00:19]} c5 {[%emt 0:01:06]} 5. Bb2 {[%emt 0:00:17]} Nc6 {[%emt 0:00:07]} 6. cxd5 {[%emt 0:00:25]} exd5 {[%emt 0:00:16]} 7. Bb5 {[%emt 0:00:27]} Bd6 {[%emt 0:00:36]} 8. d4 {[%emt 0:01:08]} cxd4 {[%emt 0:08:30]} 9. Nxd4 {[%emt 0:02:54]} O-O {[%emt 0:04:29]} 10. O-O {[%emt 0:05:08]} Bc7 {[%emt 0:00:30]} 11. h3 {[%emt 0:11:40]} Ne4 {[%emt 0:25:42]} 12. Nxc6 {[%emt 0:22:36]} bxc6 {[%emt 0:00:26]} 13. Qd4 {[%emt 0:00:03]} Nf6 {[%emt 0:02:00]} 14. Bd3 {[%emt 0:00:16]} Qd6 {[%emt 0:00:55]} 15. g3 {[%emt 0:03:20]} Bxh3 {[%emt 0:10:44]} 16. Bxh7+ {[%emt 0:01:44]} Kxh7 {[%emt 0:00:26]} 17. Qh4+ {[%emt 0:00:02]} Kg6 {[%emt 0:00:41]} 18. Qxh3 {[%emt 0:00:30]} Rh8 {[%emt 0:00:15]} 19. Qg2 {[%emt 0:00:17]} Ng4 {[%emt 0:08:02]} 20. e4 {[%emt 0:02:26]} Qe6 {[%emt 0:09:46]} 21. Nc3 {[%emt 0:06:48]} Rh2 {[%emt 0:04:10]} 22. Qf3 {[%emt 0:00:07]} Rah8 {[%emt 0:01:33]} 23. Rae1 {[%emt 0:05:55]} Ne5 {[%emt 0:00:40]} 0-1

[Event "Commonwealth Open 2019"]
[Site "Delhi"]
[Date "2019.07.01"]
[Round "3.7"]
[White "Karthikeyan, P.."]
[Black "Srihari L R"]
[Result "1/2-1/2"]
[ECO "A57"]
[WhiteElo "2445"]
[BlackElo "2200"]
[Annotator "NA"]
[PlyCount "72"]
[EventDate "2019.06.30"]
[EventType "swiss"]
[EventCountry "IND"]
[SourceTitle "playchess.com"]
[Source "ChessBase"]
[SourceQuality "1"]
[TimeControl "5400+30"]

1. d4 {[%emt 0:00:01]} Nf6 {[%emt 0:00:02]} 2. c4 {[%emt 0:00:30]} c5 {[%emt 0:00:25]} 3. d5 {[%emt 0:01:29]} b5 {[%emt 0:00:20]} 4. Qc2 {[%emt 0:00:45]} b4 {[%emt 0:00:13]} 5. e4 {[%emt 0:01:37]} d6 {[%emt 0:00:39]} 6. h3 {[%emt 0:03:12]} g6 {[%emt 0:02:34]} 7. Nf3 {[%emt 0:00:28]} Bg7 {[%emt 0:00:20]} 8. Bd3 {[%emt 0:01:00]} O-O {[%emt 0:11:21]} 9. O-O {[%emt 0:03:42]} e5 {[%emt 0:00:33]} 10. dxe6 {[%emt 0:03:54]} Bxe6 {[%emt 0:05:52]} 11. Rd1 {[%emt 0:00:33]} Qc7 {[%emt 0:10:23]} 12. Bf4 {[%emt 0:01:09]} Nc6 {[%emt 0:00:28]} 13. Nbd2 {[%emt 0:00:59]} Nd7 {[%emt 0:05:17]} 14. Rab1 {[%emt 0:02:43]} a5 {[%emt 0:05:59]} 15. Nf1 {[%emt 0:06:05]} Nde5 {[%emt 0:06:02]} 16. Qe2 $15 {[%emt 0:00:10]} Rae8 {[%emt 0:18:28]} 17. Ne3 {[%emt 0:02:32]} Nd4 {[%emt 0:00:28]} 18. Nxd4 {[%emt 0:00:49]} cxd4 {[%emt 0:00:02]} 19. Nd5 {[%emt 0:02:34]} Qc5 {[%emt 0:01:28]} 20. Rbc1 {[%emt 0:06:16]} f5 {[%emt 0:13:11]} 21. exf5 {[%emt 0:06:20]} Nxd3 {[%emt 0:02:19]} 22. Qxd3 {[%emt 0:01:29]} Bxd5 {[%emt 0:00:36]} 23. cxd5 {[%emt 0:00:37]} Qxd5 {[%emt 0:00:06]} 24. Qb3 {[%emt 0:22:52]} Qxb3 {[%emt 0:00:45]} 25. axb3 {[%emt 0:00:02]} Rxf5 {[%emt 0:00:20]} 26. Bxd6 {[%emt 0:00:20]} Rd5 {[%emt 0:03:44]} 27. Bf4 {[%emt 0:05:03]} g5 {[%emt 0:00:21]} 28. Bc7 {[%emt 0:07:02]} d3 {[%emt 0:00:54]} 29. Bb6 {[%emt 0:07:40]} d2 {[%emt 0:02:39]} 30. Rb1 {[%emt 0:00:20]} Rc8 {[%emt 0:03:00]} 31. Kf1 {[%emt 0:02:15]} Rc2 {[%emt 0:00:56]} 32. Ra1 {[%emt 0:00:59]} Rb5 {[%emt 0:05:24]} 33. Bd8 {[%emt 0:02:10]} Rd5 {[%emt 0:00:04]} 34. Bb6 {[%emt 0:00:48]} Rb5 {[%emt 0:01:08]} 35. Bd8 {[%emt 0:00:05]} Bxb2 {[%emt 0:00:31]} 36. Rxa5 {[%emt 0:00:40]} Rxa5 {[%emt 0:00:26]} 1/2-1/2

[Event "Commonwealth Open 2019"]
[Site "Delhi"]
[Date "2019.07.01"]
[Round "3.8"]
[White "Ajay Karthikeyan"]
[Black "Laxman, R.R."]
[Result "1/2-1/2"]
[ECO "A45"]
[WhiteElo "2216"]
[BlackElo "2437"]
[Annotator "NA"]
[PlyCount "120"]
[EventDate "2019.06.30"]
[EventType "swiss"]
[EventCountry "IND"]
[SourceTitle "playchess.com"]
[Source "ChessBase"]
[SourceQuality "1"]
[TimeControl "5400+30"]

1. d4 {[%emt 0:00:00]} Nf6 {[%emt 0:00:00]} 2. Bf4 {[%emt 0:00:00]} e6 {[%emt 0:00:36]} 3. e3 {[%emt 0:00:00]} c5 {[%emt 0:00:27]} 4. c3 {[%emt 0:00:00]} Nc6 {[%emt 0:00:51]} 5. Nd2 {[%emt 0:00:06]} d5 {[%emt 0:01:18]} 6. Ngf3 {[%emt 0:00:11]} Nh5 {[%emt 0:00:37]} 7. Bg5 {[%emt 0:02:11] D02: 1 d4 d5 2 Nf3 sidelines, including 2...Nf6 3 g3 and 2...Nf6 3 Bf4} Qb6 {[%emt 0:03:42]} (7... Qc7 8. Ne5 g6 9. Nxc6 bxc6 10. Be2 Rb8 11. Rb1 h6 12. Bh4 g5 13. Bxh5 gxh4 14. O-O Bd6 {1-0 (53) Harikrishna,P (2732)-Navara,D (2727) Prague 2018}) 8. Rb1 {[%emt 0:00:46]} h6 {[%emt 0:00:43]} 9. Bh4 {[%emt 0:00:13]} g5 {[%emt 0:01:18]} 10. Bg3 {[%emt 0:00:19]} Nxg3 {[%emt 0:00:13]} 11. hxg3 {[%emt 0:00:18]} cxd4 {[%emt 0:01:27]} 12. exd4 {[%emt 0:00:14]} Bg7 {[%emt 0:00:33]} 13. Bd3 {[%emt 0:04:58]} Bd7 {[%emt 0:00:06]} 14. O-O $146 {[%emt 0:04:23]} ({Predecessor:} 14. Nb3 O-O-O {0-1 (51) Harvey,M (2349)-Van der Lende,I (2332) chess.com INT 2018}) 14... g4 {[%emt 0:00:14]} 15. Nh2 {[%emt 0:06:56]} h5 {[%emt 0:00:22]} 16. Nb3 {[%emt 0:00:42]} Ne7 {[%emt 0:05:33]} 17. Nc5 {[%emt 0:09:43]} Bb5 {[%emt 0:02:35]} 18. b4 {[%emt 0:00:47]} Bxd3 {[%emt 0:00:21]} 19. Qxd3 {[%emt 0:00:02]} Qc6 {[%emt 0:03:07]} 20. b5 {[%emt 0:10:36]} Qc7 {[%emt 0:00:12]} 21. b6 {[%emt 0:00:52]} axb6 {[%emt 0:00:02]} 22. Qb5+ {[%emt 0:00:04]} Nc6 {[%emt 0:01:58]} 23. Qxb6 {[%emt 0:00:12]} Qxb6 {[%emt 0:00:07]} 24. Rxb6 {[%emt 0:00:05]} Na5 {[%emt 0:01:04]} 25. f3 $15 {[%emt 0:14:48]} Bh6 {[%emt 0:05:06]} 26. fxg4 {[%emt 0:01:55]} Be3+ {[%emt 0:00:06]} 27. Kh1 {[%emt 0:00:01]} hxg4 {[%emt 0:00:02]} 28. Nxe6 {[%emt 0:02:56]} Ke7 {[%emt 0:01:00]} 29. Nf4 {[%emt 0:00:33]} Rxh2+ {[%emt 0:00:24]} 30. Kxh2 {[%emt 0:00:02]} Rh8+ {[%emt 0:00:02]} 31. Nh3 {[%emt 0:00:01]} gxh3 {[%emt 0:04:04]} 32. gxh3 {[%emt 0:00:27]} Bd2 {[%emt 0:05:41]} 33. Rf3 {[%emt 0:08:59]} Rc8 {[%emt 0:01:58]} 34. Rbf6 {[%emt 0:01:39]} Rf8 {[%emt 0:00:17]} 35. R6f5 {[%emt 0:01:34]} Nc4 {[%emt 0:02:08]} 36. Rxd5 {[%emt 0:03:02]} b6 {[%emt 0:00:04]} 37. h4 {[%emt 0:04:47]} f6 {[%emt 0:02:25]} 38. Rb5 {[%emt 0:01:55]} Ke6 {[%emt 0:01:38]} 39. Kh3 {[%emt 0:01:37]} f5 {[%emt 0:00:22]} 40. Rd3 {[%emt 0:04:00]} Bh6 {[%emt 0:01:32]} 41. d5+ {[%emt 0:02:35]} Kd7 {[%emt 0:00:01]} 42. d6 {[%emt 0:07:02]} Bg7 {[%emt 0:00:25]} 43. Rf3 {[%emt 0:03:30]} Be5 {[%emt 0:00:30]} 44. Rb4 {[%emt 0:00:59]} Nd2 {[%emt 0:00:59]} 45. Rf2 {[%emt 0:00:51]} Rg8 {[%emt 0:01:11]} 46. g4 {[%emt 0:01:10]} Bxc3 {[%emt 0:00:02]} 47. Rbf4 {[%emt 0:02:40]} Ne4 {[%emt 0:00:06]} 48. Re2 {[%emt 0:00:22]} fxg4+ {[%emt 0:07:02]} 49. Rxg4 {[%emt 0:00:05]} Rxg4 {[%emt 0:00:04]} 50. Kxg4 {[%emt 0:00:01]} Nxd6 {[%emt 0:00:02]} 51. a4 {[%emt 0:03:20]} b5 {[%emt 0:02:28]} 52. axb5 {[%emt 0:00:06]} Nxb5 {[%emt 0:00:01]} 53. h5 {[%emt 0:00:20]} Nd6 {[%emt 0:00:05]} 54. Kg5 {[%emt 0:00:44]} Nf7+ {[%emt 0:00:16]} 55. Kf5 {[%emt 0:00:14]} Bh8 {[%emt 0:01:54]} 56. Kg6 {[%emt 0:00:16]} Ne5+ {[%emt 0:03:21]} 57. Kh7 {[%emt 0:00:16]} Bf6 {[%emt 0:00:04]} 58. Kg8 {[%emt 0:00:04]} Ke6 {[%emt 0:00:19]} 59. h6 {[%emt 0:00:25]} Kf5 {[%emt 0:00:04]} 60. h7 {[%emt 0:00:16]} Ng6 {[%emt 0:00:03]} 1/2-1/2

[Event "Commonwealth Open 2019"]
[Site "Delhi"]
[Date "2019.07.01"]
[Round "3.9"]
[White "Varshini, V."]
[Black "Krishna, C R G"]
[Result "0-1"]
[ECO "B07"]
[WhiteElo "2087"]
[BlackElo "2481"]
[Annotator "ChessBase"]
[PlyCount "68"]
[EventDate "2019.06.30"]
[EventType "swiss"]
[EventCountry "IND"]
[SourceTitle "playchess.com"]
[Source "ChessBase"]
[SourceQuality "1"]
[TimeControl "5400+30"]

1. e4 {[%emt 0:00:00]} d6 {[%emt 0:00:00]} 2. d4 {[%emt 0:00:00]} Nf6 {[%emt 0:00:00]} 3. Nc3 {[%emt 0:00:06]} Nbd7 {[%emt 0:00:00]} 4. Nf3 {[%emt 0:00:46]} e5 {[%emt 0:00:00]} 5. dxe5 {[%emt 0:04:54]} dxe5 {[%emt 0:00:12]} 6. Bc4 {[%emt 0:01:16]} Be7 {[%emt 0:03:09]} 7. O-O {[%emt 0:00:49]} c6 {[%emt 0:01:34]} 8. a4 {[%emt 0:02:12]} a5 {[%emt 0:00:26]} 9. h3 {[%emt 0:04:35]} Qc7 {[%emt 0:03:02]} 10. Qe2 {[%emt 0:02:26]} h6 {[%emt 0:02:07]} 11. Ne1 {[%emt 0:05:46]} g5 {[%emt 0:02:40]} 12. Nd3 {[%emt 0:03:48]} Nf8 {[%emt 0:01:46]} 13. Nd1 {[%emt 0:07:12]} Ng6 {[%emt 0:05:10]} 14. Bd2 {[%emt 0:14:35]} Rg8 {[%emt 0:09:41]} 15. Bc3 {[%emt 0:12:03]} Nf4 {[%emt 0:03:02]} 16. Nxf4 {[%emt 0:03:46]} gxf4 {[%emt 0:00:04]} 17. Kh1 {[%emt 0:04:41]} Rg5 {[%emt 0:12:01]} 18. Rb1 {[%emt 0:09:43]} Bd7 {[%emt 0:13:15]} 19. b4 {[%emt 0:02:30]} axb4 {[%emt 0:00:54]} 20. Bxb4 {[%emt 0:00:05]} Rxa4 {[%emt 0:00:24]} 21. Bxe7 {[%emt 0:01:28]} Kxe7 {[%emt 0:00:02]} 22. Nb2 {[%emt 0:01:18]} Ra8 {[%emt 0:03:46]} 23. Nd3 {[%emt 0:01:45]} Rag8 {[%emt 0:02:32]} 24. Qf3 {[%emt 0:04:25]} Bc8 {[%emt 0:13:54]} 25. Nc5 {[%emt 0:03:47]} Kf8 {[%emt 0:00:55]} 26. Qa3 {[%emt 0:02:38]} Kg7 {[%emt 0:02:35]} 27. Nxb7 {[%emt 0:00:36]} f3 {[%emt 0:04:48]} 28. Rg1 {[%emt 0:03:16]} fxg2+ {[%emt 0:00:12]} 29. Rxg2 {[%emt 0:03:17]} Rxg2 {[%emt 0:00:21]} 30. Kxg2 {[%emt 0:00:04]} Kh8+ {[%emt 0:01:21]} 31. Kh2 {[%emt 0:00:22]} Bxb7 {[%emt 0:00:25]} 32. Qa7 {[%emt 0:00:21]} Qd7 {[%emt 0:00:58]} 33. Qxb7 {[%emt 0:01:22]} Qd2 {[%emt 0:00:34]} 34. Qb6 {[%emt 0:00:34]} Qf4+ {[%emt 0:00:09]} 0-1

[Event "Commonwealth Open 2019"]
[Site "Delhi"]
[Date "2019.07.01"]
[Round "3.10"]
[White "Lalith, Babu M R"]
[Black "Kulkarni, Bhakti"]
[Result "1/2-1/2"]
[ECO "D31"]
[WhiteElo "2571"]
[BlackElo "2380"]
[Annotator "ChessBase"]
[PlyCount "66"]
[EventDate "2019.06.30"]
[EventType "swiss"]
[EventCountry "IND"]
[SourceTitle "playchess.com"]
[Source "ChessBase"]
[SourceQuality "1"]
[TimeControl "5400+30"]

1. c4 {[%emt 0:00:00]} e6 {[%emt 0:00:00]} 2. Nc3 {[%emt 0:00:00]} d5 {[%emt 0:00:04]} 3. d4 {[%emt 0:00:00]} Be7 {[%emt 0:00:41]} 4. cxd5 {[%emt 0:00:19]} exd5 {[%emt 0:00:04]} 5. Bf4 {[%emt 0:00:11]} Nf6 {[%emt 0:01:07]} 6. e3 {[%emt 0:01:08]} O-O {[%emt 0:02:10]} 7. Bd3 {[%emt 0:04:37]} c5 {[%emt 0:01:47]} 8. Nge2 {[%emt 0:15:33]} Nc6 {[%emt 0:03:15]} 9. Bb5 {[%emt 0:05:15]} c4 {[%emt 0:07:31]} 10. O-O {[%emt 0:05:51]} Nb4 {[%emt 0:03:07]} 11. Ba4 {[%emt 0:03:54]} a6 {[%emt 0:09:18]} 12. Be5 {[%emt 0:11:49]} b5 {[%emt 0:14:58]} 13. a3 {[%emt 0:00:42]} Nd3 {[%emt 0:09:26]} 14. Bc2 {[%emt 0:01:01]} Nxb2 {[%emt 0:04:27]} 15. Qb1 {[%emt 0:01:18]} Nd3 {[%emt 0:00:46]} 16. Bxf6 {[%emt 0:05:08]} Bxf6 {[%emt 0:00:47]} 17. Bxd3 {[%emt 0:00:12]} cxd3 {[%emt 0:00:03]} 18. Nf4 {[%emt 0:00:05]} Bg5 {[%emt 0:08:13]} 19. Nfxd5 {[%emt 0:04:21]} Bb7 {[%emt 0:00:40]} 20. Nb4 {[%emt 0:00:23]} Qc8 {[%emt 0:00:49]} 21. Rc1 {[%emt 0:06:51]} d2 {[%emt 0:12:15]} 22. Rc2 {[%emt 0:00:46]} a5 {[%emt 0:02:04]} 23. Nd3 {[%emt 0:05:27]} Qg4 {[%emt 0:00:59]} 24. Qf1 {[%emt 0:00:56]} b4 {[%emt 0:07:40]} 25. Nd1 {[%emt 0:06:24]} bxa3 {[%emt 0:01:02]} 26. h3 {[%emt 0:01:12]} Qe4 {[%emt 0:01:26]} 27. Rxd2 {[%emt 0:01:29]} Be7 {[%emt 0:00:20]} 28. Nc3 {[%emt 0:02:19]} Qc6 {[%emt 0:00:32]} 29. Nb1 {[%emt 0:00:04]} Bb4 {[%emt 0:00:53]} 30. Rda2 {[%emt 0:00:12]} Ba6 {[%emt 0:00:26]} 31. Qd1 {[%emt 0:01:04]} Bb7 {[%emt 0:02:34]} 32. Qf1 {[%emt 0:02:41]} Ba6 {[%emt 0:00:02]} 33. Qd1 {[%emt 0:00:49]} Bb7 {[%emt 0:01:15]} 1/2-1/2